bitfinex/quotes_BTCUSD_20250308
["timestamp","ask_amount","ask_price","bid_price","bid_amount"]
[1741477382936,0.35358724,86384.0,86383.0,0.0001699]
[1741477384024,0.36058724,86384.0,86383.0,0.0011699]
[1741477384385,0.35358724,86384.0,86383.0,0.0001699]
[1741477384934,0.36058724,86384.0,86383.0,0.0011699]
[1741477385691,0.36058724,86384.0,86382.0,0.98300154]
[1741477385896,0.4837713,86383.0,86382.0,0.98300154]
[1741477386916,0.4837713,86383.0,86382.0,0.98400154]
[1741477387539,0.4837713,86383.0,86382.0,0.98300154]
[1741477387747,0.4897713,86383.0,86382.0,0.98400154]
[1741477388904,0.4897713,86383.0,86382.0,0.96583332]
[1741477389486,0.4837713,86383.0,86382.0,0.96483332]
[1741477390452,0.450492,86383.0,86382.0,0.96483332]
[1741477391494,0.46866066,86383.0,86382.0,0.96483332]
[1741477392011,0.50194592,86383.0,86382.0,0.96483332]
[1741477392914,0.450492,86383.0,86382.0,0.96483332]
[1741477393116,0.48377874,86383.0,86382.0,0.96483332]
[1741477394910,0.450492,86383.0,86382.0,0.96483332]
[1741477395324,0.48378461,86383.0,86382.0,0.96483332]
[1741477395526,0.450492,86383.0,86382.0,0.96483332]
[1741477395729,0.48378012,86383.0,86382.0,0.96483332]
[1741477395924,0.50194814,86383.0,86382.0,0.96483332]
[1741477399037,0.50194814,86383.0,86382.0,1.09470322]
[1741477401828,0.20194814,86383.0,86382.0,1.09470322]
[1741477402035,0.3,86384.0,86382.0,1.09470322]
[1741477402371,0.01816818,86383.0,86382.0,1.09470322]
[1741477402585,0.3,86384.0,86382.0,1.09470322]
[1741477403012,0.150492,86383.0,86382.0,1.09470322]
[1741477403208,0.450492,86384.0,86382.0,1.09470322]
[1741477403610,0.450492,86384.0,86382.0,1.01340322]
[1741477403839,0.450492,86384.0,86383.0,0.0802]
[1741477404248,5.354e-05,86386.0,86383.0,0.0802]
[1741477404421,5.354e-05,86386.0,86384.0,0.0003772]
[1741477405468,0.01821985,86386.0,86385.0,0.143576]
[1741477405694,0.01821985,86386.0,86385.0,0.14403713]
[1741477406278,0.01821985,86386.0,86385.0,0.14519461]
[1741477406480,0.01821985,86386.0,86385.0,0.14403713]
[1741477407410,0.12222127,86386.0,86385.0,0.14403713]
[1741477408604,0.12222127,86386.0,86385.0,0.15857798]
[1741477410593,0.12256107,86386.0,86385.0,0.15857798]
[1741477410993,0.12256107,86386.0,86385.0,0.14403713]
[1741477411191,0.12256107,86386.0,86385.0,0.25851713]
[1741477413743,0.12656107,86386.0,86385.0,0.25851713]
[1741477414385,0.04064438,86396.0,86389.0,0.00046113]
[1741477414741,0.138902,86392.0,86389.0,0.00046113]
[1741477414953,0.150472,86394.0,86389.0,0.00046113]
[1741477415559,0.011575,86390.0,86389.0,0.00046113]
[1741477415772,0.011575,86389.0,86388.0,0.14868]
[1741477415972,0.150481,86389.0,86388.0,0.14868]
[1741477417191,0.155481,86389.0,86388.0,0.14868]
[1741477417591,0.17364736,86389.0,86388.0,0.14868]
[1741477418548,0.02316636,86389.0,86388.0,0.24321613]
[1741477418770,0.02316636,86389.0,86388.0,0.29271613]
[1741477419546,0.01816636,86389.0,86388.0,0.29271613]
[1741477419908,0.02216636,86389.0,86388.0,0.29271613]
[1741477420335,0.02216636,86389.0,86388.0,0.29471613]
[1741477420992,0.02216636,86389.0,86388.0,0.30925698]
[1741477422896,0.02250616,86389.0,86388.0,0.30925698]
[1741477427578,0.042487,86408.0,86403.0,0.150456]
[1741477427810,0.05406,86408.0,86404.0,0.1138]
[1741477428853,0.05406,86408.0,86405.0,0.00046113]
[1741477429196,0.05806,86408.0,86405.0,0.00046113]
[1741477429407,0.011573,86407.0,86404.0,0.1138]
[1741477430208,0.011573,86405.0,86404.0,0.1138]
[1741477430917,0.02973535,86405.0,86404.0,0.1138]
[1741477431071,0.01816235,86405.0,86404.0,0.1138]
[1741477432080,0.01916235,86405.0,86404.0,0.1138]
[1741477434774,0.01916235,86405.0,86403.0,0.093073]
[1741477435002,0.01916235,86405.0,86404.0,0.11348]
[1741477438084,0.01916235,86405.0,86403.0,0.093073]
[1741477438285,0.01916235,86405.0,86403.0,0.206313]
[1741477438973,0.01816235,86405.0,86403.0,0.206313]
[1741477439318,0.01916235,86405.0,86403.0,0.206313]
[1741477440583,0.150455,86404.0,86403.0,0.19474]
[1741477440784,0.150455,86404.0,86403.0,0.11324]
[1741477442127,0.151455,86404.0,86403.0,0.11324]
[1741477442344,0.001,86404.0,86403.0,0.11324]
[1741477442552,0.001,86404.0,86403.0,0.124813]
[1741477442736,0.001,86404.0,86403.0,0.249913]
[1741477443297,0.001,86404.0,86403.0,0.25022982]
[1741477443529,0.001,86404.0,86403.0,0.249913]
[1741477445484,0.01816235,86405.0,86403.0,0.249913]
[1741477445658,0.01816235,86405.0,86404.0,0.150455]
[1741477447026,0.01916235,86405.0,86404.0,0.150455]
[1741477447589,0.01916235,86405.0,86404.0,0.15068558]
[1741477447809,0.01916235,86405.0,86404.0,0.150455]
[1741477448028,0.01916235,86405.0,86404.0,0.15071062]
[1741477448543,0.01916235,86405.0,86404.0,0.150455]
[1741477448870,0.01916235,86405.0,86404.0,0.15069015]
[1741477449055,0.01916235,86405.0,86404.0,0.150455]
[1741477449463,0.01916235,86405.0,86404.0,0.15070908]
[1741477451066,0.01916235,86405.0,86404.0,0.150455]
[1741477452127,0.13491425,86419.0,86412.0,0.011572]
[1741477452453,0.011571,86418.0,86413.0,0.124412]
[1741477453300,0.01168306,86418.0,86413.0,0.124412]
[1741477454032,0.01168306,86418.0,86414.0,0.00046113]
[1741477454239,0.00511206,86418.0,86414.0,0.13932713]
[1741477454439,0.00511206,86418.0,86414.0,0.15089913]
[1741477455037,0.00511206,86418.0,86414.0,0.01203313]
[1741477455244,0.00511206,86418.0,86414.0,0.011572]
[1741477455443,0.02327328,86418.0,86414.0,0.011572]
[1741477455624,0.01827328,86418.0,86414.0,0.011572]
[1741477455823,0.02227328,86418.0,86414.0,0.011572]
[1741477456426,0.02627328,86418.0,86414.0,0.011572]
[1741477456920,0.02627328,86418.0,86414.0,0.150438]
[1741477457463,0.02627328,86418.0,86415.0,0.00046113]
[1741477458570,0.02627328,86418.0,86416.0,0.138863]
[1741477458773,0.01827328,86418.0,86416.0,0.138863]
[1741477458976,0.02227328,86418.0,86415.0,0.011572]
[1741477459795,0.01827328,86418.0,86415.0,0.011572]
[1741477459995,0.01827328,86418.0,86414.0,0.150438]
[1741477460195,0.01827328,86418.0,86416.0,0.150433]
[1741477460619,0.02227328,86418.0,86416.0,0.150433]
[1741477460822,0.3,86425.0,86417.0,0.01203213]
[1741477461021,0.13885,86424.0,86418.0,0.138859]
[1741477461200,0.13885,86424.0,86419.0,0.00046113]
[1741477461406,0.01816078,86423.0,86422.0,0.138852]
[1741477462017,0.01816078,86423.0,86422.0,0.150423]
[1741477462871,0.01816078,86423.0,86422.0,0.146423]
[1741477463394,0.005,86423.0,86422.0,0.227223]
[1741477463631,0.005,86423.0,86422.0,0.22768413]
[1741477465124,0.0003398,86432.0,86428.0,0.150412]
[1741477465319,0.0003398,86432.0,86429.0,0.11252]
[1741477466448,0.01849753,86432.0,86429.0,0.11252]
[1741477468074,0.01849753,86432.0,86429.0,0.12409]
[1741477469463,0.01849753,86432.0,86430.0,0.150409]
[1741477471012,0.01849753,86432.0,86431.0,0.011569]
[1741477472711,0.01849753,86432.0,86429.0,0.26293]
[1741477475436,0.011568,86438.0,86429.0,0.26293]
[1741477475637,0.01815795,86432.0,86430.0,0.00038776]
[1741477476051,0.138834,86434.0,86430.0,0.00038776]
[1741477476273,0.011569,86435.0,86429.0,0.26293]
[1741477476570,0.011569,86436.0,86431.0,0.138839]
[1741477476896,0.011569,86436.0,86431.0,0.138838]
[1741477477112,0.011569,86436.0,86432.0,0.0003944]
[1741477477342,0.13883,86437.0,86431.0,0.150407]
[1741477477544,0.150399,86437.0,86431.0,0.150407]
[1741477477741,0.150399,86437.0,86431.0,0.011569]
[1741477478833,0.01815751,86436.0,86431.0,0.011569]
[1741477480121,0.01815751,86436.0,86431.0,0.150406]
[1741477481314,0.01815751,86436.0,86432.0,0.011569]
[1741477482559,0.01815751,86436.0,86431.0,0.150406]
[1741477482560,0.02972651,86436.0,86431.0,0.011569]
[1741477484465,0.01815751,86436.0,86431.0,0.150406]
[1741477485396,0.01815751,86436.0,86431.0,0.011569]
[1741477485776,0.01832741,86436.0,86431.0,0.011569]
[1741477486536,0.138832,86435.0,86431.0,0.011569]
[1741477488445,0.02989641,86436.0,86431.0,0.011569]
[1741477488842,0.02989641,86436.0,86430.0,0.150409]
[1741477489092,0.150403,86435.0,86430.0,0.150409]
[1741477491272,0.1505709,86436.0,86431.0,0.011569]
[1741477494246,0.01815708,86435.0,86431.0,0.011569]
[1741477494455,0.02972608,86435.0,86430.0,0.150409]
[1741477494650,0.16856008,86435.0,86430.0,0.150409]
[1741477497312,0.011569,86434.0,86429.0,0.12409]
[1741477498540,0.011569,86434.0,86430.0,0.0003398]
[1741477500859,0.150404,86433.0,86430.0,0.0003398]
[1741477501384,0.150408,86431.0,86430.0,0.0003398]
[1741477504135,0.011569,86434.0,86430.0,0.0003398]
[1741477504307,0.011569,86433.0,86430.0,0.0003398]
[1741477504446,0.0001699,86436.0,86432.0,0.150406]
[1741477504684,0.03326512,86435.0,86432.0,0.232906]
[1741477505126,0.011569,86433.0,86430.0,0.0003398]
[1741477505537,0.011569,86431.0,86430.0,0.0003398]
[1741477505716,0.011569,86433.0,86430.0,0.0003398]
[1741477508458,0.138833,86435.0,86430.0,0.0003398]
[1741477508634,0.150402,86435.0,86430.0,0.0003398]
[1741477508834,0.011569,86434.0,86430.0,0.0003398]
[1741477509038,0.150404,86434.0,86430.0,0.0003398]
[1741477510225,0.150402,86435.0,86430.0,0.0003398]
[1741477510831,0.138833,86435.0,86431.0,0.138839]
[1741477511384,0.138835,86433.0,86430.0,0.0003398]
[1741477511673,0.011569,86433.0,86430.0,0.0003398]
[1741477512308,0.138837,86432.0,86430.0,0.0003398]
[1741477513625,0.011569,86435.0,86430.0,0.0119098]
[1741477516213,0.011569,86435.0,86430.0,0.1507488]
[1741477520880,0.1505709,86436.0,86431.0,0.011569]
[1741477521731,0.011569,86435.0,86430.0,0.0119098]
[1741477522830,0.150403,86434.0,86430.0,0.0003398]
[1741477523043,0.011569,86434.0,86430.0,0.0003398]
[1741477523448,0.011569,86431.0,86430.0,0.0003398]
[1741477523658,0.56286275,86431.0,86430.0,0.0003398]
[1741477524539,0.57158165,86431.0,86430.0,0.0003398]
[1741477526848,0.68186165,86431.0,86430.0,0.0003398]
[1741477527054,0.72796165,86431.0,86430.0,8e-07]
[1741477527290,0.75296165,86431.0,86430.0,8e-07]
[1741477528201,0.77987118,86431.0,86430.0,8e-07]
[1741477528837,0.78587118,86431.0,86430.0,8e-07]
[1741477529474,0.80041203,86431.0,86422.0,6e-07]
[1741477529614,0.82057494,86423.0,86422.0,6e-07]
[1741477529819,0.85382969,86423.0,86422.0,6e-07]
[1741477531700,0.85882969,86423.0,86422.0,6e-07]
[1741477531899,0.55104963,86423.0,86422.0,6e-07]
[1741477532239,0.58455268,86423.0,86422.0,6e-07]
[1741477532760,0.1262,86423.0,86422.0,6e-07]
[1741477532964,0.13777,86423.0,86422.0,6e-07]
[1741477533375,0.276621,86423.0,86422.0,6e-07]
[1741477533810,0.386901,86423.0,86422.0,6e-07]
[1741477534534,0.381901,86423.0,86422.0,6e-07]
[1741477534882,0.387901,86423.0,86422.0,6e-07]
[1741477535086,0.381901,86423.0,86422.0,6e-07]
[1741477535256,0.386901,86423.0,86422.0,6e-07]
[1741477536464,0.21221934,86423.0,86422.0,6e-07]
[1741477536660,0.21255914,86423.0,86422.0,6e-07]
[1741477536963,0.22412914,86423.0,86422.0,6e-07]
[1741477539600,0.62768104,86423.0,86422.0,6e-07]
[1741477540781,0.51740104,86423.0,86422.0,6e-07]
[1741477543118,0.41384914,86423.0,86422.0,6e-07]
[1741477543930,0.40884914,86423.0,86422.0,6e-07]
[1741477546402,0.40884914,86423.0,86414.0,0.0001699]
[1741477546403,0.3,86422.0,86414.0,0.0001305]
[1741477546558,0.450436,86415.0,86414.0,5e-07]
[1741477546764,0.48392516,86415.0,86414.0,5e-07]
[1741477548839,0.81092516,86415.0,86414.0,5e-07]
[1741477549046,0.83698482,86415.0,86414.0,5e-07]
[1741477551088,0.85152567,86415.0,86403.0,9e-07]
[1741477551324,0.450481,86389.0,86388.0,0.0001699]
[1741477551549,0.450481,86389.0,86388.0,0.00055655]
[1741477552248,0.47177076,86389.0,86388.0,0.00055655]
[1741477555827,0.58205076,86389.0,86388.0,0.00055655]
[1741477558210,0.61560806,86389.0,86388.0,0.00055655]
[1741477558624,0.6243385,86389.0,86388.0,0.00055655]
[1741477560957,0.6243385,86389.0,86388.0,7.95319555]
[1741477561306,0.6243385,86389.0,86388.0,7.96241354]
[1741477564500,0.6243385,86389.0,86388.0,7.94582747]
[1741477564703,0.5907812,86389.0,86388.0,7.94582747]
[1741477571997,0.5907812,86389.0,86388.0,7.94599737]
[1741477574740,0.62434212,86389.0,86388.0,7.94599737]
[1741477580586,0.62434212,86389.0,86388.0,7.41466437]
[1741477580794,0.5907812,86389.0,86388.0,6.88505537]
[1741477581378,0.5907812,86389.0,86388.0,6.93255537]
[1741477581774,0.39216333,86389.0,86388.0,6.93255537]
[1741477581979,0.53106933,86389.0,86388.0,6.93255537]
[1741477582310,0.54264433,86389.0,86388.0,6.93255537]
[1741477583038,0.54268433,86389.0,86388.0,7.01305537]
[1741477583262,0.43236433,86389.0,86388.0,7.01305537]
[1741477583657,0.43270413,86389.0,86388.0,7.01305537]
[1741477587099,0.10672619,86389.0,86388.0,7.01305537]
[1741477588825,0.11541393,86389.0,86388.0,7.01305537]
[1741477589165,0.43496412,86389.0,86388.0,7.01305537]
[1741477589366,0.42627638,86389.0,86388.0,7.01305537]
[1741477591955,0.42627638,86389.0,86388.0,6.93255537]
[1741477592781,0.45989566,86389.0,86388.0,6.93255537]
[1741477592983,0.53659638,86389.0,86388.0,6.93255537]
[1741477593189,0.57021456,86389.0,86388.0,6.93255537]
[1741477594941,0.53659638,86389.0,86388.0,6.93255537]
[1741477597309,0.57020694,86389.0,86388.0,6.93255537]
[1741477597530,0.57020694,86389.0,86388.0,7.00955537]
[1741477597531,0.45988694,86389.0,86388.0,7.00955537]
[1741477597891,0.15988694,86389.0,86388.0,7.00955537]
[1741477598103,0.10672619,86389.0,86388.0,7.00955537]
[1741477600481,0.40672619,86389.0,86388.0,7.00955537]
[1741477600977,0.0003398,86389.0,86388.0,7.00955537]
[1741477601333,0.0119148,86389.0,86388.0,7.00955537]
[1741477604695,0.3119148,86389.0,86388.0,7.00955537]
[1741477616189,0.3119148,86389.0,86388.0,6.93255537]
[1741477616389,0.3119148,86389.0,86388.0,6.88505537]
[1741477618912,0.34547981,86389.0,86388.0,6.88505537]
[1741477620739,0.34547981,86389.0,86388.0,6.96685537]
[1741477621176,0.3119148,86389.0,86388.0,6.96685537]
[1741477621459,0.34548079,86389.0,86388.0,6.96685537]
[1741477622019,0.3119148,86389.0,86388.0,7.01635537]
[1741477624302,0.4508208,86389.0,86388.0,7.01635537]
[1741477626953,0.3003398,86389.0,86388.0,7.01635537]
[1741477627159,0.4392458,86389.0,86388.0,7.01635537]
[1741477628282,0.3003398,86389.0,86388.0,7.01635537]
[1741477628672,0.4392458,86389.0,86388.0,7.01635537]
[1741477628874,0.4508208,86389.0,86388.0,7.01635537]
[1741477635988,0.3003398,86389.0,86388.0,7.01635537]
[1741477636200,0.0003398,86389.0,86388.0,7.01635537]
[1741477636405,0.0003398,86389.0,86388.0,7.02793037]
[1741477641591,0.0003398,86389.0,86388.0,7.16683837]
[1741477643910,0.0002998,86389.0,86388.0,7.16683837]
[1741477651235,0.13889,86399.0,86393.0,0.082]
[1741477651438,0.13889,86399.0,86394.0,0.12038693]
[1741477652955,0.011574,86398.0,86394.0,0.12038693]
[1741477653283,0.150464,86399.0,86395.0,0.1304]
[1741477653284,0.1508038,86399.0,86395.0,0.1304]
[1741477653418,0.1508038,86399.0,86396.0,0.00046113]
[1741477653640,0.1508038,86399.0,86397.0,0.00962911]
[1741477653844,0.1508038,86399.0,86398.0,0.00046113]
[1741477654257,0.1508038,86399.0,86398.0,0.01008468]
[1741477654553,0.1508038,86399.0,86398.0,0.00962355]
[1741477655007,0.1508038,86399.0,86396.0,0.00046113]
[1741477655210,0.138889,86400.0,86398.0,0.00962355]
[1741477655415,0.150463,86400.0,86399.0,0.01007912]
[1741477655544,0.150463,86400.0,86399.0,0.00961799]
[1741477655775,0.150463,86400.0,86396.0,0.00046113]
[1741477655986,0.150463,86400.0,86397.0,0.00915877]
[1741477656212,0.150463,86400.0,86398.0,0.00046113]
[1741477656407,0.150463,86400.0,86399.0,0.00914765]
[1741477656695,0.150452,86406.0,86399.0,0.14803665]
[1741477656899,0.150452,86406.0,86400.0,0.00046113]
[1741477657106,0.011573,86402.0,86400.0,0.00046113]
[1741477657307,0.011573,86402.0,86401.0,0.00913653]
[1741477657711,0.011573,86402.0,86396.0,0.00046113]
[1741477658174,0.011573,86402.0,86397.0,0.00915877]
[1741477658370,0.011573,86402.0,86398.0,0.00046113]
[1741477658802,0.011573,86402.0,86399.0,0.00914765]
[1741477659007,0.15046,86401.0,86399.0,0.00914765]
[1741477659335,0.15046,86401.0,86396.0,0.00046113]
[1741477659545,0.15046,86401.0,86400.0,0.00941375]
[1741477659750,0.15046,86401.0,86396.0,0.00046113]
[1741477659926,0.15046,86401.0,86400.0,0.00941375]
[1741477660056,0.15046,86401.0,86396.0,0.00046113]
[1741477660261,0.15046,86401.0,86400.0,0.00941375]
[1741477660662,0.15046,86401.0,86396.0,0.00046113]
[1741477660925,0.15046,86401.0,86400.0,0.00941375]
[1741477661105,0.15046,86401.0,86396.0,0.00046113]
[1741477661264,0.15046,86401.0,86400.0,0.00941375]
[1741477661465,0.15046,86401.0,86396.0,0.00046113]
[1741477661694,0.15046,86401.0,86400.0,0.00941375]
[1741477662456,0.15046,86401.0,86396.0,0.00046113]
[1741477662658,0.011574,86400.0,86396.0,0.00046113]
[1741477666660,0.011574,86400.0,86397.0,0.11024]
[1741477666852,0.150464,86399.0,86398.0,0.00046113]
[1741477667092,0.150464,86399.0,86397.0,0.11024]
[1741477668909,0.25413702,86399.0,86397.0,0.11024]
[1741477669213,0.25413702,86399.0,86398.0,0.00942488]
[1741477669417,0.10367302,86399.0,86398.0,0.00942488]
[1741477669556,0.10367302,86399.0,86398.0,0.00970524]
[1741477676835,0.1506308,86401.0,86398.0,0.00942488]
[1741477677045,0.1506308,86401.0,86398.0,0.00968126]
[1741477680394,0.0001698,86401.0,86398.0,0.14857226]
[1741477680616,0.0001698,86401.0,86398.0,0.00968126]
[1741477687041,0.03110209,86406.0,86398.0,0.00968126]
[1741477687215,0.011573,86406.0,86398.0,0.00968126]
[1741477687632,0.138884,86403.0,86398.0,0.00968126]
[1741477687928,0.011573,86403.0,86398.0,0.00968126]
[1741477689723,0.138881,86405.0,86398.0,0.16014526]
[1741477690080,0.138856,86420.0,86413.0,0.0785]
[1741477690258,0.011571,86421.0,86414.0,0.0491]
[1741477690559,0.011571,86421.0,86415.0,0.00933036]
[1741477690763,0.011571,86419.0,86415.0,0.00933036]
[1741477690974,0.138863,86416.0,86415.0,0.00933036]
[1741477691199,0.150434,86416.0,86415.0,0.00933036]
[1741477691396,0.150446,86409.0,86408.0,0.11024]
[1741477691741,0.150446,86409.0,86408.0,0.11960927]
[1741477691980,0.150446,86409.0,86408.0,0.00936927]
[1741477693271,0.0003871,86416.0,86415.0,0.150436]
[1741477693516,0.0003871,86416.0,86415.0,0.23826636]
[1741477694546,0.0003871,86416.0,86415.0,0.28736636]
[1741477696117,0.0003871,86416.0,86415.0,0.30190721]
[1741477696537,0.0003871,86416.0,86415.0,0.28736636]
[1741477698278,0.07357129,86417.0,86416.0,0.011571]
[1741477698416,0.07364742,86417.0,86416.0,0.16067213]
[1741477698643,7.613e-05,86417.0,86416.0,0.16999693]
[1741477702103,0.00024593,86417.0,86416.0,0.16999693]
[1741477704911,0.00024593,86417.0,86416.0,0.15842593]
[1741477705118,0.15067793,86417.0,86416.0,0.15842593]
[1741477705481,0.15067793,86417.0,86416.0,0.2681648]
[1741477706060,0.00024593,86417.0,86416.0,0.2681648]
[1741477706986,0.00024593,86417.0,86416.0,0.2797358]
[1741477708038,0.01181693,86417.0,86416.0,0.2681648]
[1741477708599,0.00024593,86417.0,86416.0,0.2681648]
[1741477709969,0.01181693,86417.0,86416.0,0.2681648]
[1741477710172,0.00024593,86417.0,86416.0,0.2681648]
[1741477711494,0.01181693,86417.0,86416.0,0.1579648]
[1741477724006,0.31181693,86417.0,86416.0,0.1579648]
[1741477725256,0.34537621,86417.0,86416.0,0.0093248]
[1741477725491,0.450434,86416.0,86415.0,0.0003396]
[1741477725826,0.48399328,86416.0,86415.0,0.0003396]
[1741477730849,0.49251539,86416.0,86415.0,0.0003396]
[1741477731311,0.45895611,86416.0,86415.0,0.0003396]
[1741477731563,0.4925042,86416.0,86415.0,0.0003396]
[1741477732144,0.45895611,86416.0,86415.0,0.0003396]
[1741477733321,0.3,86416.0,86415.0,0.0003396]
[1741477733522,0.3,86416.0,86415.0,0.1270396]
[1741477733834,0.3,86416.0,86415.0,0.13636996]
[1741477734012,0.438863,86416.0,86415.0,0.13636996]
[1741477734218,0.450434,86416.0,86415.0,0.13636996]
[1741477734428,0.311571,86416.0,86415.0,0.13636996]
[1741477735768,0.3,86416.0,86415.0,0.13636996]
[1741477736112,0.3,86416.0,86415.0,0.14794196]
[1741477737489,0.3,86416.0,86415.0,0.25814196]
[1741477739917,0.00024593,86417.0,86416.0,0.225434]
[1741477740150,0.00024593,86417.0,86416.0,0.28121993]
[1741477740530,0.00024593,86417.0,86416.0,0.2807588]
[1741477740889,0.00024593,86417.0,86416.0,0.28121993]
[1741477741086,0.10397001,86417.0,86416.0,0.28121993]
[1741477744684,0.10397001,86417.0,86416.0,0.42985993]
[1741477745406,0.00024593,86417.0,86416.0,0.42985993]
[1741477750343,0.00024593,86417.0,86416.0,0.43019953]
[1741477752260,0.00024593,86417.0,86416.0,0.4297384]
[1741477753743,0.20196065,86436.0,86428.0,0.01157]
[1741477753950,0.011569,86434.0,86429.0,0.18946]
[1741477754338,0.011569,86434.0,86430.0,0.00924699]
[1741477754736,0.150403,86434.0,86430.0,0.00924699]
[1741477755176,0.011569,86434.0,86430.0,0.00924699]
[1741477755778,0.150408,86431.0,86430.0,0.00924699]
[1741477759486,0.150415,86427.0,86426.0,0.11016]
[1741477759894,0.150425,86422.0,86416.0,0.3454126]
[1741477760196,0.150425,86422.0,86417.0,0.11947924]
[1741477760985,0.01157,86425.0,86418.0,0.011571]
[1741477761299,0.01157,86425.0,86419.0,0.00930812]
[1741477761567,0.138852,86423.0,86419.0,0.00930812]
[1741477761770,0.150422,86423.0,86419.0,0.00930812]
[1741477762565,0.01157,86423.0,86419.0,0.00964772]
[1741477764581,0.01157,86424.0,86419.0,0.02121872]
[1741477768021,0.01157,86423.0,86419.0,0.00964772]
[1741477768213,0.011571,86420.0,86419.0,0.00964772]
[1741477770749,0.150422,86423.0,86419.0,0.00964772]
[1741477771385,0.01157,86424.0,86420.0,0.00046113]
[1741477771728,0.138849,86425.0,86421.0,0.148151]
[1741477772013,0.138845,86428.0,86422.0,0.00046113]
[1741477772213,0.08453125,86430.0,86425.0,0.150418]
[1741477772364,0.3,86431.0,86426.0,0.150417]
[1741477772523,0.13884,86430.0,86426.0,0.00926921]
[1741477773604,0.311569,86431.0,86426.0,0.00926921]
[1741477774130,0.311569,86431.0,86426.0,0.02083921]
[1741477775580,0.01157,86429.0,86426.0,0.00926921]
[1741477775778,0.01157,86427.0,86426.0,0.00926921]
[1741477775983,0.01157,86427.0,86426.0,0.0003398]
[1741477783082,0.04518186,86427.0,86426.0,0.0003398]
[1741477783263,0.01157,86427.0,86426.0,0.0003398]
[1741477783475,0.04518258,86427.0,86426.0,0.0003398]
[1741477783678,0.01157,86427.0,86426.0,0.0003398]
[1741477783881,0.04518273,86427.0,86426.0,0.0003398]
[1741477784307,0.01157,86427.0,86426.0,0.0003398]
[1741477784624,0.04518222,86427.0,86426.0,0.0003398]
[1741477784783,0.01157,86427.0,86426.0,0.0003398]
[1741477787253,0.04518275,86427.0,86426.0,0.0003398]
[1741477794357,0.01157,86427.0,86426.0,0.0003398]
[1741477796286,0.04520342,86427.0,86426.0,0.0003398]
[1741477796488,0.02972821,86427.0,86426.0,0.0003398]
[1741477796748,0.138842,86429.0,86426.0,0.0003398]
[1741477796968,0.02972893,86427.0,86426.0,0.0003398]
[1741477800392,0.02972893,86427.0,86426.0,0.0495398]
[1741477803154,0.02972893,86427.0,86426.0,0.0003398]
[1741477803843,0.01157,86427.0,86419.0,0.09268058]
[1741477804076,0.150427,86420.0,86419.0,0.09268058]
[1741477807281,0.16858586,86420.0,86419.0,0.09268058]
[1741477807500,0.16858586,86420.0,86419.0,0.07452172]
[1741477811743,0.16858586,86420.0,86419.0,0.07486152]
[1741477812122,0.01815886,86420.0,86419.0,0.07486152]
[1741477812333,0.01815886,86420.0,86419.0,0.16653252]
[1741477813193,0.01815886,86420.0,86419.0,0.30539052]
[1741477817587,0.01815886,86420.0,86419.0,0.29381952]
[1741477817774,0.01815886,86420.0,86419.0,0.35309052]
[1741477819203,0.01815886,86420.0,86419.0,0.36239863]
[1741477822815,0.138838,86432.0,86424.0,0.1239]
[1741477822816,0.1505809,86430.0,86424.0,0.1239]
[1741477823014,0.01157,86429.0,86425.0,0.00046113]
[1741477823292,0.01157,86429.0,86425.0,0.0097359]
[1741477824042,0.150413,86428.0,86425.0,0.0097359]
[1741477824191,0.150413,86428.0,86425.0,0.00927477]
[1741477825761,0.16857096,86428.0,86425.0,0.00927477]
[1741477826926,0.01157,86427.0,86425.0,0.00927477]
[1741477830671,0.150417,86426.0,86425.0,0.00927477]
[1741477833002,0.01157,86426.0,86425.0,0.00927477]
[1741477833820,0.150417,86426.0,86425.0,0.00927477]
[1741477834285,0.01815796,86428.0,86425.0,0.00927477]
[1741477834514,0.01815796,86428.0,86426.0,0.150417]
[1741477834763,0.01815796,86428.0,86426.0,0.150416]
[1741477834951,0.01815796,86428.0,86427.0,0.00926365]
[1741477835424,0.01815796,86428.0,86425.0,0.01157]
[1741477835625,0.01815796,86428.0,86427.0,0.00926365]
[1741477836120,0.01815796,86428.0,86426.0,0.138846]
[1741477836329,0.01815283,86428.0,86427.0,0.00926365]
[1741477836599,0.01815283,86428.0,86427.0,0.08576365]
[1741477836839,0.01815283,86428.0,86427.0,0.0765]
[1741477837070,0.01815283,86428.0,86427.0,0.08576365]
[1741477842649,0.17380645,86431.0,86427.0,0.08576365]
[1741477842854,0.01157,86429.0,86427.0,0.08576365]
[1741477843065,0.01815828,86428.0,86427.0,0.08576365]
[1741477843267,0.01157,86429.0,86427.0,0.08576365]
[1741477844110,0.150413,86428.0,86427.0,0.08576365]
[1741477845136,0.01157,86428.0,86427.0,0.08576365]
[1741477846191,0.0297279,86428.0,86427.0,0.08576365]
[1741477847632,0.0298978,86428.0,86427.0,0.08576365]
[1741477847856,0.0183278,86428.0,86427.0,0.08576365]
[1741477851295,0.0183278,86428.0,86427.0,0.09733365]
[1741477851496,0.0183278,86428.0,86427.0,0.23617865]
[1741477856120,0.0183278,86428.0,86427.0,0.28497865]
[1741477861281,0.0183278,86428.0,86427.0,0.28531845]
[1741477863799,0.12257892,86428.0,86427.0,0.28531845]
[1741477868020,0.0183278,86428.0,86427.0,0.28531845]
[1741477879872,0.0001699,86428.0,86427.0,0.28531845]
[1741477882981,0.01832611,86428.0,86427.0,0.28531845]
[1741477900793,0.01111013,86436.0,86428.0,0.01157]
[1741477901013,0.01111013,86436.0,86429.0,0.11033059]
[1741477901217,0.01111013,86436.0,86429.0,0.12015093]
[1741477901761,0.138834,86435.0,86429.0,0.12015093]
[1741477902061,0.150403,86435.0,86429.0,0.11986034]
[1741477902446,0.16151313,86435.0,86429.0,0.11986034]
[1741477903275,0.16351313,86435.0,86429.0,0.11986034]
[1741477903581,0.16351313,86435.0,86430.0,0.138839]
[1741477903743,0.16351313,86435.0,86430.0,0.150409]
[1741477903939,0.01815671,86434.0,86431.0,0.00980922]
[1741477904967,0.01815671,86434.0,86431.0,0.02137822]
[1741477905600,0.01815671,86434.0,86432.0,0.138837]
[1741477905773,0.01815671,86434.0,86432.0,0.150406]
[1741477905972,0.01815671,86434.0,86433.0,0.00979811]
[1741477906578,0.02015671,86434.0,86433.0,0.00979811]
[1741477907669,0.01815671,86434.0,86433.0,0.00979811]
[1741477908436,0.01815671,86434.0,86433.0,0.10613852]
[1741477908634,0.01815671,86434.0,86433.0,0.15148162]
[1741477908817,0.0001699,86438.0,86437.0,0.150398]
[1741477909015,0.0001699,86438.0,86437.0,0.232698]
[1741477909216,0.0001699,86438.0,86437.0,0.24247389]
[1741477909841,0.0001699,86438.0,86437.0,0.24147389]